bitfinex/quotes_BTCUSD_20250608
["timestamp","ask_amount","ask_price","bid_price","bid_amount"]
[1749415247281,1.88018886,106380.0,106370.0,0.00297]
[1749415247463,1.8425895,106380.0,106370.0,0.00297]
[1749415251671,1.85198934,106380.0,106370.0,0.00297]
[1749415257659,1.88014038,106380.0,106370.0,0.00297]
[1749415258518,1.85198934,106380.0,106370.0,0.00297]
[1749415258723,1.88014103,106380.0,106370.0,0.00297]
[1749415262376,1.85198934,106380.0,106370.0,0.00297]
[1749415263007,1.83678934,106380.0,106370.0,0.00297]
[1749415267575,1.89318839,106380.0,106370.0,0.00297]
[1749415267988,1.93790332,106380.0,106370.0,0.00297]
[1749415273024,1.89318393,106380.0,106370.0,0.00297]
[1749415277466,1.87778393,106380.0,106370.0,0.00297]
[1749415282310,0.68458793,106380.0,106370.0,0.00297]
[1749415282515,1.87778393,106380.0,106370.0,0.00297]
[1749415282733,1.97418341,106380.0,106370.0,0.00297]
[1749415283164,1.60362341,106380.0,106370.0,0.00297]
[1749415283390,1.97422341,106380.0,106370.0,0.00297]
[1749415283803,1.87782393,106380.0,106370.0,0.00297]
[1749415284010,0.68462793,106380.0,106370.0,0.00297]
[1749415284216,1.87782393,106380.0,106370.0,0.00297]
[1749415287820,1.82142488,106380.0,106370.0,0.01857]
[1749415290307,0.62822888,106380.0,106370.0,0.01857]
[1749415290589,1.82142488,106380.0,106370.0,0.01857]
[1749415294698,1.91782436,106380.0,106370.0,0.01857]
[1749415297853,1.94603646,106380.0,106370.0,0.01857]
[1749415298064,1.84963698,106380.0,106370.0,0.01857]
[1749415321316,1.47903698,106380.0,106370.0,0.01857]
[1749415321516,1.84955698,106380.0,106370.0,0.01857]
[1749415339884,1.84955698,106380.0,106370.0,0.03427]
[1749415340097,1.81195762,106380.0,106370.0,0.03427]
[1749415340918,1.82958838,106380.0,106370.0,0.03427]
[1749415341367,1.9083571,106380.0,106370.0,0.03427]
[1749415341575,1.82958834,106380.0,106370.0,0.03427]
[1749415342195,1.81195762,106380.0,106370.0,0.03427]
[1749415342611,0.61876162,106380.0,106370.0,0.03427]
[1749415342823,1.81195762,106380.0,106370.0,0.03427]
[1749415343092,1.86718749,106380.0,106370.0,0.03427]
[1749415343281,0.67399149,106380.0,106370.0,0.03427]
[1749415343492,1.86718749,106380.0,106370.0,0.03427]
[1749415344671,1.82958813,106380.0,106370.0,0.03427]
[1749415345282,1.82958738,106380.0,106370.0,0.03427]
[1749415345682,1.82958685,106380.0,106370.0,0.03427]
[1749415347477,1.82958674,106380.0,106370.0,0.03427]
[1749415347688,1.82958653,106380.0,106370.0,0.03427]
[1749415348129,1.82958652,106380.0,106370.0,0.03427]
[1749415351226,1.23294852,106380.0,106370.0,0.03427]
[1749415351433,1.23294861,106380.0,106370.0,0.03427]
[1749415351645,0.35215072,106380.0,106370.0,0.03427]
[1749415351852,1.23294874,106380.0,106370.0,0.03427]
[1749415352060,0.86246874,106380.0,106370.0,0.03427]
[1749415352265,1.23306874,106380.0,106370.0,0.03427]
[1749415353114,1.23306503,106380.0,106370.0,0.03427]
[1749415353741,1.23306504,106380.0,106370.0,0.03427]
[1749415354605,1.23306311,106380.0,106370.0,0.03427]
[1749415355017,1.21543962,106380.0,106370.0,0.03427]
[1749415355473,1.23306311,106380.0,106370.0,0.03427]
[1749415356688,1.21543962,106380.0,106370.0,0.03427]
[1749415357110,1.23306294,106380.0,106370.0,0.03427]
[1749415358293,1.23302294,106380.0,106370.0,0.03427]
[1749415358714,1.21539962,106380.0,106370.0,0.03427]
[1749415358905,1.14674148,106380.0,106370.0,0.03427]
[1749415359054,1.12911962,106380.0,106370.0,0.03427]
[1749415359275,1.14674149,106380.0,106370.0,0.03427]
[1749415360524,1.12911962,106380.0,106370.0,0.03427]
[1749415360724,1.14674152,106380.0,106370.0,0.03427]
[1749415360971,1.14674153,106380.0,106370.0,0.03427]
[1749415362166,1.12911962,106380.0,106370.0,0.03427]
[1749415362367,1.14674129,106380.0,106370.0,0.03427]
[1749415362566,1.12911962,106380.0,106370.0,0.03427]
[1749415362763,1.14674127,106380.0,106370.0,0.03427]
[1749415364372,1.12911962,106380.0,106370.0,0.03427]
[1749415364602,1.14674148,106380.0,106370.0,0.03427]
[1749415365270,1.1467421,106380.0,106370.0,0.03427]
[1749415366434,1.12911962,106380.0,106370.0,0.03427]
[1749415366632,1.1467421,106380.0,106370.0,0.03427]
[1749415367134,1.14674129,106380.0,106370.0,0.03427]
[1749415367819,1.12911962,106380.0,106370.0,0.03427]
[1749415368034,1.14674102,106380.0,106370.0,0.03427]
[1749415368224,1.14674101,106380.0,106370.0,0.03427]
[1749415368465,1.12911962,106380.0,106370.0,0.03427]
[1749415368664,1.14674105,106380.0,106370.0,0.03427]
[1749415368867,1.14674103,106380.0,106370.0,0.03427]
[1749415369141,1.14674105,106380.0,106370.0,0.03427]
[1749415370765,0.55014305,106380.0,106370.0,0.03427]
[1749415370959,1.14674105,106380.0,106370.0,0.03427]
[1749415371200,1.1467414,106380.0,106370.0,0.03427]
[1749415371411,1.12911962,106380.0,106370.0,0.03427]
[1749415371658,1.14674143,106380.0,106370.0,0.03427]
[1749415372470,1.14674166,106380.0,106370.0,0.03427]
[1749415372881,1.12911962,106380.0,106370.0,0.03427]
[1749415373083,1.14674169,106380.0,106370.0,0.03427]
[1749415373290,1.14674224,106380.0,106370.0,0.03427]
[1749415373485,1.12911962,106380.0,106370.0,0.03427]
[1749415373697,1.14674222,106380.0,106370.0,0.03427]
[1749415374540,0.24705236,106380.0,106370.0,0.72726748]
[1749415374751,0.24705311,106380.0,106370.0,0.93409217]
[1749415374976,0.05275505,106380.0,106370.0,0.96743415]
[1749415375173,0.03959997,106380.0,106370.0,0.96743415]
[1749415375421,0.02079972,106380.0,106370.0,0.96743415]
[1749415375628,0.03959944,106380.0,106370.0,0.96743415]
[1749415377111,0.2276047,106380.0,106370.0,0.95803363]
[1749415378374,0.2276047,106380.0,106370.0,0.94863302]
[1749415378586,0.21820524,106380.0,106370.0,1.23283302]
[1749415379191,0.21820524,106380.0,106370.0,1.53113302]
[1749415381249,0.20880551,106380.0,106370.0,1.53113311]
[1749415384861,0.19940552,106380.0,106370.0,1.53113311]
[1749415387934,0.19000526,106380.0,106370.0,1.5217324]
[1749415388093,0.19000526,106380.0,106370.0,1.53113345]
[1749415388735,0.19000526,106380.0,106370.0,1.54053442]
[1749415390869,0.19000526,106380.0,106370.0,1.2375324]
[1749415391073,0.19000526,106380.0,106370.0,1.53117345]
[1749415398790,0.19000526,106380.0,106370.0,0.44351033]
[1749415398996,0.19000526,106380.0,106370.0,0.72767033]
[1749415399360,0.18067397,106380.0,106370.0,1.32426833]
[1749415399538,0.17922149,106380.0,106370.0,0.71312948]
[1749415402998,0.17922149,106380.0,106370.0,0.41482948]
[1749415406077,0.17922149,106380.0,106370.0,0.41016362]
[1749415423509,0.17922149,106380.0,106370.0,0.41956476]
[1749415427361,0.17922149,106380.0,106370.0,0.13540476]
[1749415438490,0.17922149,106380.0,106370.0,0.32342769]
[1749415439137,0.17922149,106380.0,106370.0,0.12600362]
[1749415439359,0.81498644,106380.0,106370.0,0.09639948]
[1749415439573,0.83098644,106380.0,106370.0,0.09639948]
[1749415440831,0.84861422,106380.0,106370.0,0.09639948]
[1749415441057,0.83261422,106380.0,106370.0,0.09639948]
[1749415441480,0.83261383,106380.0,106370.0,0.09639948]
[1749415441684,0.81498644,106380.0,106370.0,0.09639948]
[1749415441916,0.83261385,106380.0,106370.0,0.09639948]
[1749415442129,0.81498644,106380.0,106370.0,0.09639948]
[1749415442344,0.83261398,106380.0,106370.0,0.09639948]
[1749415443451,0.19742398,106370.0,106360.0,0.52084347]
[1749415443656,0.19742398,106370.0,106360.0,1.21570095]
[1749415444714,0.19742398,106370.0,106360.0,1.21670095]
[1749415445784,0.19742398,106370.0,106360.0,1.21770095]
[1749415445983,0.19742398,106370.0,106360.0,0.93354095]
[1749415446200,0.19742398,106370.0,106360.0,1.21770095]
[1749415446823,0.19742398,106370.0,106360.0,0.72669748]
[1749415447033,0.19742398,106370.0,106360.0,1.01085748]
[1749415448576,0.19742398,106370.0,106360.0,1.02025951]
[1749415449399,0.19742398,106370.0,106360.0,1.20830012]
[1749415449863,0.19742398,106370.0,106360.0,1.21770197]
[1749415450071,0.19742398,106370.0,106360.0,0.93354197]
[1749415450286,0.19742398,106370.0,106360.0,1.21770197]
[1749415450494,0.20682486,106370.0,106360.0,1.21770197]
[1749415450711,0.20682486,106370.0,106360.0,1.23650523]
[1749415450919,0.216226,106370.0,106360.0,1.23650523]
[1749415451311,0.216226,106370.0,106360.0,1.2365054]
[1749415454597,0.216226,106370.0,106360.0,0.9523454]
[1749415454801,0.216226,106370.0,106360.0,0.96174698]
[1749415455204,0.216226,106370.0,106360.0,1.24590698]
[1749415455829,0.216226,106370.0,106360.0,0.96174698]
[1749415456031,0.216226,106370.0,106360.0,1.24590698]
[1749415456586,0.216226,106370.0,106360.0,0.96174698]
[1749415456848,0.216226,106370.0,106360.0,1.24590698]
[1749415458434,0.216226,106370.0,106360.0,0.96174698]
[1749415458915,0.216226,106370.0,106360.0,1.24590698]
[1749415459123,0.216226,106370.0,106360.0,0.96174698]
[1749415459533,0.216226,106370.0,106360.0,1.24590698]
[1749415460230,0.216226,106370.0,106360.0,0.96174698]
[1749415460674,0.216226,106370.0,106360.0,1.24590698]
[1749415461101,0.216226,106370.0,106360.0,0.96174698]
[1749415461338,0.216226,106370.0,106360.0,1.24590698]
[1749415462207,0.216226,106370.0,106360.0,0.96174698]
[1749415462421,0.216226,106370.0,106360.0,1.24590698]
[1749415463113,0.216226,106370.0,106360.0,0.96174698]
[1749415463329,0.216226,106370.0,106360.0,1.24590698]
[1749415463530,0.216226,106370.0,106360.0,0.96174698]
[1749415463964,0.216226,106370.0,106360.0,1.24590645]
[1749415464399,0.216226,106370.0,106360.0,0.96174645]
[1749415464622,0.216226,106370.0,106360.0,1.24590645]
[1749415465288,0.216226,106370.0,106360.0,0.96174645]
[1749415465714,0.216226,106370.0,106360.0,1.24590645]
[1749415467776,0.216226,106370.0,106360.0,1.24590601]
[1749415470088,0.02820307,106370.0,106360.0,1.24590601]
[1749415474053,0.01880193,106370.0,106360.0,1.24590601]
[1749415478823,0.02820307,106370.0,106360.0,1.24590601]
[1749415479685,0.02820307,106370.0,106360.0,0.96174601]
[1749415479898,0.02820307,106370.0,106360.0,1.24590601]
[1749415480317,0.216226,106370.0,106360.0,1.2365046]
[1749415482574,0.216226,106370.0,106360.0,1.2647466]
[1749415487581,0.216226,106370.0,106360.0,1.2553451]
[1749415487795,0.216226,106370.0,106360.0,0.36518552]
[1749415488038,0.216226,106370.0,106360.0,1.2553451]
[1749415489569,0.20682512,106370.0,106360.0,1.24594397]
[1749415489758,0.20682512,106370.0,106360.0,1.24594406]
[1749415489974,0.19742407,106370.0,106360.0,1.04850151]
[1749415490214,0.19742407,106370.0,106360.0,0.76434151]
[1749415490455,0.19742407,106370.0,106360.0,1.04850151]
[1749415491058,0.19742407,106370.0,106360.0,0.76434151]
[1749415491275,0.18802293,106370.0,106360.0,0.73893948]
[1749415491457,0.18802293,106370.0,106360.0,1.02309948]
[1749415493776,0.18802293,106370.0,106360.0,1.03250151]
[1749415494688,0.18802293,106370.0,106360.0,1.02309948]
[1749415494924,0.18802293,106370.0,106360.0,0.39821948]
[1749415495146,0.18802293,106370.0,106360.0,0.99481748]
[1749415495744,0.18802293,106370.0,106360.0,0.71069748]
[1749415495906,0.18802293,106370.0,106360.0,0.99481748]
[1749415496087,0.18802293,106370.0,106360.0,0.71069748]
[1749415496283,0.18802293,106370.0,106360.0,0.99481748]
[1749415497033,0.18802293,106370.0,106360.0,0.71069748]
[1749415497321,0.18802293,106370.0,106360.0,0.99481748]
[1749415499537,0.18802293,106370.0,106360.0,0.71069748]
[1749415499671,0.18802293,106370.0,106360.0,0.99481748]
[1749415500187,0.18802293,106370.0,106360.0,0.73893948]
[1749415500426,0.18802293,106370.0,106360.0,1.02305948]
[1749415500605,0.18802293,106370.0,106360.0,0.42646148]
[1749415500864,0.18802293,106370.0,106360.0,1.03246151]
[1749415501099,0.18802293,106370.0,106360.0,1.02305948]
[1749415501271,0.18802293,106370.0,106360.0,0.99481748]
[1749415501475,0.18802293,106370.0,106360.0,0.71069748]
[1749415502022,0.18802293,106370.0,106360.0,0.99481748]
[1749415504707,0.18802293,106370.0,106360.0,0.71069748]
[1749415505114,0.18802293,106370.0,106360.0,1.00421951]
[1749415506228,0.18802293,106370.0,106360.0,0.72009951]
[1749415506416,0.18802293,106370.0,106360.0,1.00421951]
[1749415506625,0.18802293,106370.0,106360.0,0.72009951]
[1749415507026,0.18802293,106370.0,106360.0,1.00421951]
[1749415509572,0.18802293,106370.0,106360.0,1.19226012]
[1749415509812,0.18802293,106370.0,106360.0,1.20166206]
[1749415513311,0.18802293,106370.0,106360.0,1.00421951]
[1749415513521,0.18802293,106370.0,106360.0,0.40762151]
[1749415513729,0.18802293,106370.0,106360.0,1.00421951]
[1749415513934,0.18802293,106370.0,106360.0,0.97911748]
[1749415514549,0.18802293,106370.0,106360.0,0.69499748]
[1749415514750,0.18802293,106370.0,106360.0,0.97911748]
[1749415515687,0.18802293,106370.0,106360.0,0.99511748]
[1749415516314,0.18802293,106370.0,106360.0,0.71099748]
[1749415516507,0.18802293,106370.0,106360.0,0.99511748]
[1749415517728,0.18802293,106370.0,106360.0,0.39851948]
[1749415517934,0.18802293,106370.0,106360.0,0.11439948]
[1749415518514,0.18802293,106370.0,106360.0,0.39851948]
[1749415518737,0.18802293,106370.0,106360.0,0.11439948]
[1749415519254,0.18802293,106370.0,106360.0,0.39851948]
[1749415520231,0.18802293,106370.0,106360.0,0.11439948]
[1749415520439,0.18802293,106370.0,106360.0,0.39851948]
[1749415521594,0.18802293,106370.0,106360.0,0.99511748]
[1749415523247,0.18802293,106370.0,106360.0,0.71099748]
[1749415523493,0.18802293,106370.0,106360.0,0.99511748]
[1749415523695,0.18802293,106370.0,106360.0,0.71099748]
[1749415523855,0.18802293,106370.0,106360.0,0.99511748]
[1749415525398,0.18802293,106370.0,106360.0,0.39851948]
[1749415526867,0.18802293,106370.0,106360.0,0.11439948]
[1749415527079,0.18802293,106370.0,106360.0,0.39851948]
[1749415528223,0.18802293,106370.0,106360.0,0.11439948]
[1749415528441,0.18802293,106370.0,106360.0,0.39851948]
[1749415528649,0.18802293,106370.0,106360.0,0.30244009]
[1749415528855,0.18802293,106370.0,106360.0,0.58656009]
[1749415529270,0.18802293,106370.0,106360.0,0.30244009]
[1749415529592,0.18802293,106370.0,106360.0,0.32794203]
[1749415530040,0.18802293,106370.0,106360.0,0.61206203]
[1749415530276,0.18802293,106370.0,106360.0,0.32794203]
[1749415530497,0.18802293,106370.0,106360.0,0.33734379]
[1749415530700,0.18802293,106370.0,106360.0,0.62146379]
[1749415531443,0.18802293,106370.0,106360.0,0.33734379]
[1749415531651,0.18802293,106370.0,106360.0,0.62146379]
[1749415533306,0.18802293,106370.0,106360.0,0.33734379]
[1749415533484,0.18802293,106370.0,106360.0,0.62146379]
[1749415534307,0.18802293,106370.0,106360.0,0.33734379]
[1749415534498,0.18802293,106370.0,106360.0,0.61206212]
[1749415534666,0.18802293,106370.0,106360.0,0.62146397]
[1749415534866,0.18802293,106370.0,106360.0,0.34674573]
[1749415535178,0.18802293,106370.0,106360.0,0.63086573]
[1749415535602,0.18802293,106370.0,106360.0,0.62146397]
[1749415536211,0.18802293,106370.0,106360.0,0.60536397]
[1749415538019,0.18802293,106370.0,106360.0,0.32124397]
[1749415538288,0.18802293,106370.0,106360.0,0.60536397]
[1749415538720,0.18802293,106370.0,106360.0,0.60536406]
[1749415539254,0.18802293,106370.0,106360.0,0.32124406]
[1749415539455,0.18802293,106370.0,106360.0,0.60536406]
[1749415540219,0.18802293,106370.0,106360.0,0.32124406]
[1749415540631,0.18802293,106370.0,106360.0,0.60536406]
[1749415540830,0.18802293,106370.0,106360.0,0.61476591]
[1749415541532,0.18802293,106370.0,106360.0,0.33064591]
[1749415541712,0.18802293,106370.0,106360.0,0.61476591]
[1749415543272,0.18802293,106370.0,106360.0,0.33064591]
[1749415543497,0.18802293,106370.0,106360.0,0.61476591]
[1749415543707,0.18802293,106370.0,106360.0,0.32124406]
[1749415543923,0.18802293,106370.0,106360.0,0.60536406]
[1749415544158,0.18802293,106370.0,106360.0,0.61476591]
[1749415547631,0.18802293,106370.0,106360.0,0.60536406]
[1749415550063,0.18802293,106370.0,106360.0,0.61476591]
[1749415551270,0.18802293,106370.0,106360.0,0.60536406]
[1749415551474,0.18802293,106370.0,106360.0,0.61476582]
[1749415556233,0.18802293,106370.0,106360.0,0.33064582]
[1749415556437,0.18802293,106370.0,106360.0,0.61476582]
[1749415560156,0.18802293,106370.0,106360.0,0.60536406]
[1749415561412,0.18802293,106370.0,106360.0,0.61476591]
[1749415562971,0.18802293,106370.0,106360.0,0.35624767]
[1749415563170,0.18802293,106370.0,106360.0,0.36564934]
[1749415563379,0.22562679,106370.0,106360.0,1.22756364]
[1749415563783,0.22562679,106370.0,106360.0,1.23696531]
[1749415564018,0.21622609,106370.0,106360.0,1.23696531]
[1749415569093,0.21622609,106370.0,106360.0,1.24636689]
[1749415572336,0.21622609,106370.0,106360.0,0.96224689]
[1749415572545,0.21622609,106370.0,106360.0,1.24632689]
[1749415578047,0.21622609,106370.0,106360.0,1.23692495]
[1749415579395,0.21622609,106370.0,106360.0,1.22752337]
[1749415579596,0.21622609,106370.0,106360.0,1.2181217]
[1749415579809,0.20682512,106370.0,106360.0,1.2181217]
[1749415582789,0.20682512,106370.0,106360.0,0.6215237]
[1749415583001,0.20682512,106370.0,106360.0,1.2181217]
[1749415583130,0.20682512,106370.0,106360.0,0.9340417]
[1749415583342,0.20682512,106370.0,106360.0,1.2181217]
[1749415585292,0.20682512,106370.0,106360.0,1.20871994]
[1749415587980,0.19742407,106370.0,106360.0,1.20871994]
[1749415591479,0.19742407,106370.0,106360.0,0.92463994]
[1749415591716,0.19742407,106370.0,106360.0,1.20871994]
[1749415592029,0.18802293,106370.0,106360.0,0.92464012]
[1749415592432,0.18802293,106370.0,106360.0,1.20872012]
[1749415592644,0.18802293,106370.0,106360.0,0.61212212]
[1749415593263,0.18802293,106370.0,106360.0,0.59592212]
[1749415593832,0.18802293,106370.0,106360.0,0.31184212]
[1749415594036,0.18802293,106370.0,106360.0,0.59592212]
[1749415594238,0.18802293,106370.0,106360.0,0.31184212]
[1749415594633,0.18802293,106370.0,106360.0,0.59592212]
[1749415595885,0.18802293,106370.0,106360.0,0.40788151]
[1749415598809,0.18802293,106370.0,106360.0,0.12380151]
[1749415599031,0.18802293,106370.0,106360.0,0.40788151]
[1749415599688,0.18802293,106370.0,106360.0,1.00447951]
[1749415600636,0.18802293,106370.0,106360.0,1.19273048]
[1749415601021,0.18802293,106370.0,106360.0,1.00468987]
[1749415603175,0.21058638,106370.0,106360.0,0.99528784]
[1749415605299,0.21058638,106370.0,106360.0,0.39847948]
[1749415609239,0.21058638,106370.0,106360.0,0.11439948]
[1749415609442,0.21058638,106370.0,106360.0,0.39847948]
[1749415610004,0.21058638,106370.0,106360.0,0.11439948]
[1749415610754,0.21058638,106370.0,106360.0,0.39847948]
[1749415611083,0.21058638,106370.0,106360.0,0.11439948]
[1749415611282,0.21058638,106370.0,106360.0,0.39847948]
[1749415612210,0.21058638,106370.0,106360.0,0.11439948]
[1749415612364,0.21058638,106370.0,106360.0,0.39847948]
[1749415613829,0.21058638,106370.0,106360.0,0.11439948]
[1749415613991,0.21058638,106370.0,106360.0,0.39847948]
[1749415615123,0.21058638,106370.0,106360.0,0.11439948]
[1749415615318,0.21058638,106370.0,106360.0,0.39847948]
[1749415616407,0.21058638,106370.0,106360.0,0.11439948]
[1749415616755,0.21058638,106370.0,106360.0,0.39847948]
[1749415617124,0.21058638,106370.0,106360.0,0.11439948]
[1749415617260,0.21058638,106370.0,106360.0,0.39847948]
[1749415618218,0.21058638,106370.0,106360.0,0.11439948]
[1749415618371,0.21058638,106370.0,106360.0,0.39847948]
[1749415620398,0.21058638,106370.0,106360.0,0.41467948]
[1749415622253,0.21058638,106370.0,106360.0,0.13059948]
[1749415622469,0.21058638,106370.0,106360.0,0.41467948]
[1749415622606,0.21058638,106370.0,106360.0,0.13059948]
[1749415622814,0.21058638,106370.0,106360.0,0.41467948]
[1749415623249,0.21058638,106370.0,106360.0,0.13059948]
[1749415623457,0.21058638,106370.0,106360.0,0.41467948]
[1749415623858,0.21058638,106370.0,106360.0,0.39847948]
[1749415625096,0.21058638,106370.0,106360.0,0.11439948]
[1749415625527,0.21058638,106370.0,106360.0,0.39847948]
[1749415626606,0.21058638,106370.0,106360.0,0.38247948]
[1749415628205,0.21058951,106370.0,106360.0,0.38247948]
[1749415628833,0.21058951,106370.0,106360.0,0.39747948]
[1749415630278,0.21058951,106370.0,106360.0,0.11339948]
[1749415630456,0.21058951,106370.0,106360.0,0.39743948]
[1749415637261,0.21058951,106370.0,106360.0,0.11339948]
[1749415637480,0.21058951,106370.0,106360.0,0.39743948]
[1749415640655,0.21058951,106370.0,106360.0,0.12839948]
[1749415640864,0.21058951,106370.0,106360.0,0.41243948]
[1749415643082,0.21058951,106370.0,106360.0,0.42184151]
[1749415643579,0.21058951,106370.0,106360.0,0.13780151]
[1749415643810,0.21058951,106370.0,106360.0,0.42184151]
[1749415644027,0.21058951,106370.0,106360.0,0.41243948]
[1749415644444,0.21058951,106370.0,106360.0,0.12839948]
[1749415644634,0.21058951,106370.0,106360.0,0.41243948]
[1749415645120,0.21058951,106370.0,106360.0,0.12839948]
[1749415645323,0.21058951,106370.0,106360.0,0.41243948]
[1749415645730,0.21058951,106370.0,106360.0,0.12839948]
[1749415646103,0.21058951,106370.0,106360.0,0.41243948]
[1749415646714,0.21058951,106370.0,106360.0,0.12839948]
[1749415646916,0.21058951,106370.0,106360.0,0.41243948]
[1749415660661,0.21058951,106370.0,106360.0,0.42184151]
[1749415662387,0.21058951,106370.0,106360.0,0.13780151]
[1749415662388,0.23879774,106370.0,106360.0,0.13780151]
[1749415663093,0.23879774,106370.0,106360.0,0.12739948]
[1749415663312,0.2763971,106370.0,106360.0,0.12739948]
[1749415663831,0.2763971,106370.0,106360.0,0.12639948]
[1749415664288,0.23879774,106370.0,106360.0,0.12639948]
[1749415664501,0.23979774,106370.0,106360.0,0.12639948]
[1749415665170,0.24079774,106370.0,106360.0,0.12639948]
[1749415668257,0.24079774,106370.0,106360.0,0.41039948]
[1749415669166,0.24079774,106370.0,106360.0,0.12639948]
[1749415669375,0.24079774,106370.0,106360.0,0.41039948]
[1749415669980,0.24079774,106370.0,106360.0,0.12639948]
[1749415670188,0.21259038,106370.0,106360.0,0.12639948]
[1749415670403,0.21259038,106370.0,106360.0,0.41039948]
[1749415671525,0.21259038,106370.0,106360.0,0.12639948]
[1749415671731,0.21259038,106370.0,106360.0,0.41039948]
[1749415671954,0.21259038,106370.0,106360.0,0.12639948]
[1749415672202,0.21259038,106370.0,106360.0,0.41039948]
[1749415673043,0.21259038,106370.0,106360.0,0.12639948]
[1749415673243,0.21259038,106370.0,106360.0,0.41039948]
[1749415674899,0.21259038,106370.0,106360.0,0.12639948]
[1749415675563,0.21259038,106370.0,106360.0,0.41039948]
[1749415675977,0.21259038,106370.0,106360.0,0.07934948]
[1749415676394,0.2407997,106370.0,106360.0,0.07934948]
[1749415676607,0.27839906,106370.0,106360.0,0.07934948]
[1749415676814,0.27739906,106370.0,106360.0,0.07934948]
[1749415677216,0.27939906,106370.0,106360.0,0.07934948]
[1749415677391,0.2417997,106370.0,106360.0,0.07934948]
[1749415677821,0.2397997,106370.0,106360.0,0.07934948]
[1749415678203,0.2407997,106370.0,106360.0,0.07934948]
[1749415683484,0.21259038,106370.0,106360.0,0.07934948]
[1749415684569,0.21259038,106370.0,106360.0,0.03229948]
[1749415685403,0.2407997,106370.0,106360.0,0.03229948]
[1749415685824,0.2407997,106370.0,106360.0,0.01729948]
[1749415686038,0.2407997,106370.0,106350.0,0.3145]
[1749415686039,0.19744246,106360.0,106350.0,0.3145]
[1749415686252,0.24822216,106360.0,106350.0,0.69275867]
[1749415686470,0.19746102,106350.0,106340.0,0.12664203]
[1749415686707,0.22002847,106350.0,106340.0,0.47629618]
[1749415686921,0.1974796,106340.0,106330.0,0.2983]
[1749415687146,0.33587773,106340.0,106330.0,0.2983]
[1749415687358,0.36407813,106340.0,106330.0,0.2983]
[1749415687587,0.33582393,106340.0,106330.0,0.2983]
[1749415687801,0.3358238,106340.0,106330.0,0.2983]
[1749415688238,0.34243411,106340.0,106330.0,0.29834795]
[1749415688454,0.31819488,106340.0,106330.0,0.29834795]
[1749415689596,0.28059552,106340.0,106330.0,0.29934795]
[1749415689816,0.28259552,106340.0,106330.0,0.29934795]
[1749415690038,0.28259552,106340.0,106330.0,4.795e-05]
[1749415690254,0.28359552,106340.0,106330.0,4.795e-05]
[1749415691186,0.03762083,106320.0,106310.0,1.73426338]
[1749415691401,0.04702613,106320.0,106310.0,1.83948401]
[1749415691616,0.03762057,106320.0,106310.0,1.83948401]
[1749415691836,0.03762057,106320.0,106310.0,1.83007818]
[1749415692052,0.04702613,106320.0,106310.0,1.83948472]
[1749415692471,0.22773272,106320.0,106310.0,1.83948472]
[1749415692687,0.22573272,106320.0,106310.0,1.83948472]
[1749415692895,0.22873272,106320.0,106310.0,1.83948472]
[1749415693101,0.22873272,106320.0,106310.0,1.85402557]
[1749415693322,0.21932769,106320.0,106310.0,1.84461956]
[1749415693964,0.21932769,106320.0,106310.0,1.83961956]
[1749415694211,0.21932769,106320.0,106310.0,1.85501956]
[1749415695646,0.21932769,106320.0,106310.0,1.2582112]
[1749415696580,0.21932769,106320.0,106310.0,1.2582912]
[1749415696833,0.20051692,106320.0,106310.0,1.07382158]
[1749415697038,0.25577798,106320.0,106310.0,0.29844374]
[1749415697296,0.23221692,106320.0,106310.0,0.29844374]
[1749415698190,0.23221692,106320.0,106310.0,0.00014374]
[1749415699842,0.25466298,106320.0,106310.0,0.00014374]
[1749415701581,0.62494298,106320.0,106310.0,0.00014374]
[1749415701826,0.62498298,106320.0,106310.0,0.00014374]
[1749415706493,0.65313145,106320.0,106310.0,0.00014374]
[1749415707371,0.63783145,106320.0,106310.0,0.00014374]
[1749415707797,0.63765422,106320.0,106310.0,0.00014374]
[1749415709594,0.67525358,106320.0,106310.0,0.00014374]
[1749415713198,0.69185358,106320.0,106310.0,0.00014374]
[1749415713410,0.72024302,106320.0,106310.0,0.00014374]
[1749415714476,0.68264366,106320.0,106310.0,0.00014374]
[1749415715787,0.66604366,106320.0,106310.0,0.00014374]
[1749415716453,0.60964461,106320.0,106310.0,0.00014374]
[1749415716665,0.66591932,106320.0,106310.0,0.00014374]
[1749415723669,0.70346011,106320.0,106310.0,0.00014374]
[1749415724540,0.70346678,106320.0,106310.0,0.00014374]
[1749415726436,0.66591932,106320.0,106310.0,0.00014374]
[1749415726648,0.70349185,106320.0,106310.0,0.00014374]
[1749415727281,0.71009792,106320.0,106310.0,0.00014374]
[1749415728125,0.71009793,106320.0,106310.0,0.00014374]
[1749415728545,0.70349185,106320.0,106310.0,0.00014374]
[1749415728756,0.71670424,106320.0,106310.0,0.00014374]
[1749415728971,0.71670426,106320.0,106310.0,0.00014374]
[1749415729825,0.71009803,106320.0,106310.0,0.00014374]
[1749415730049,0.7167042,106320.0,106310.0,0.00014374]
[1749415730469,0.71009803,106320.0,106310.0,0.00014374]
[1749415730687,0.66042954,106320.0,106310.0,0.00014374]
[1749415731791,0.65382332,106320.0,106310.0,0.00014374]
[1749415732229,0.66042953,106320.0,106310.0,0.00014374]
[1749415732796,0.66042964,106320.0,106310.0,0.00014374]
[1749415733037,0.67542964,106320.0,106310.0,0.00014374]
[1749415733255,0.67542979,106320.0,106310.0,0.00014374]
[1749415733690,0.67542971,106320.0,106310.0,0.00014374]
[1749415734757,0.66882332,106320.0,106310.0,0.00014374]
[1749415734965,0.67542956,106320.0,106310.0,0.00014374]
[1749415735432,0.66882332,106320.0,106310.0,0.00014374]
[1749415735647,0.70361671,106320.0,106310.0,0.00014374]
[1749415736443,0.69701046,106320.0,106310.0,0.00014374]
[1749415736666,0.70361671,106320.0,106310.0,0.00014374]
[1749415737365,0.68861677,106320.0,106310.0,0.00014374]
[1749415738528,0.65104424,106320.0,106310.0,0.00014374]
[1749415738939,0.65104458,106320.0,106310.0,0.00014374]
[1749415741623,0.65104531,106320.0,106310.0,0.00014374]
[1749415742424,0.64443793,106320.0,106310.0,0.00014374]
[1749415742701,0.65104531,106320.0,106310.0,0.00014374]
[1749415743450,0.65104511,106320.0,106310.0,0.00014374]
[1749415744060,0.65104532,106320.0,106310.0,0.00014374]
[1749415744276,0.65104531,106320.0,106310.0,0.00014374]
[1749415745190,0.65104546,106320.0,106310.0,0.00014374]
[1749415745585,0.64443793,106320.0,106310.0,0.00014374]
[1749415745788,0.65104546,106320.0,106310.0,0.00014374]
[1749415747205,0.65104544,106320.0,106310.0,0.00014374]
[1749415747432,0.65104513,106320.0,106310.0,0.00014374]
[1749415747800,0.65104516,106320.0,106310.0,0.00014374]
[1749415748258,0.65104528,106320.0,106310.0,0.00014374]
[1749415748926,0.64443793,106320.0,106310.0,0.00014374]
[1749415749126,0.65104549,106320.0,106310.0,0.00014374]
[1749415749907,0.28072549,106320.0,106310.0,0.00014374]
[1749415750183,0.65104549,106320.0,106310.0,0.01524374]
[1749415750446,0.64443793,106320.0,106310.0,0.01524374]